fUST/lending_fUST_20250804
["ID","MTS","AMOUNT","RATE_DAILY","PERIOD"]
[377078774,1754250644730,-1375.35718669,0.00042964,31]
[377078776,1754250644741,-1375.35718669,0.00042964,31]
[377078778,1754250644751,-1375.35718669,0.00042964,31]
[377078780,1754250644761,-1375.35718669,0.00042964,31]
[377078782,1754250644772,-1375.35718669,0.00042964,31]
[377078784,1754250644782,-1375.35718669,0.00042964,31]
[377078787,1754250644793,-1375.35718669,0.00042964,31]
[377078789,1754250644803,-1375.35718669,0.00042964,31]
[377078791,1754250644814,-1375.35718669,0.00042964,31]
[377078793,1754250644824,-1375.35718669,0.00042964,31]
[377078795,1754250644834,-1375.35718669,0.00042964,31]
[377078797,1754250644845,-1375.35718669,0.00042964,31]
[377078799,1754250644854,-1375.35718669,0.00042964,31]
[377078801,1754250644864,-1375.35718669,0.00042964,31]
[377078803,1754250644873,-1375.35718669,0.00042964,31]
[377078805,1754250644882,-1375.35718669,0.00042964,31]
[377078807,1754250644891,-1375.35718669,0.00042964,31]
[377078809,1754250644901,-1375.35718669,0.00042964,31]
[377078811,1754250644911,-1375.35718669,0.00042964,31]
[377078813,1754250644920,-1375.35718669,0.00042964,31]
[377078815,1754250644929,-1375.35718669,0.00042964,31]
[377078817,1754250644940,-1375.35718669,0.00042964,31]
[377078819,1754250644949,-1375.35718669,0.00042964,31]
[377078821,1754250644959,-1375.35718669,0.00042964,31]
[377078822,1754250644968,-1375.35718669,0.00042964,31]
[377078824,1754250644977,-1375.35718669,0.00042964,31]
[377078826,1754250644986,-489.23275204,0.00042964,31]
[377078828,1754250644995,-155.0,0.00042964,120]
[377078830,1754250645006,-213.37674625,0.00042965,31]
[377078832,1754250645015,-43391.4040218,0.00042966,3]
[377078834,1754250645025,-2817.56939232,0.00042966,3]
[377078837,1754250645035,-43391.4040218,0.0004298,3]
[377078839,1754250645045,-2817.56939232,0.0004298,3]
[377078841,1754250645055,-11702.43,0.00042987,120]
[377078843,1754250645064,-946.16,0.0004299,30]
[377078845,1754250645074,-43391.4040218,0.0004299,3]
[377078847,1754250645083,-2817.56939232,0.0004299,3]
[377078849,1754250645094,-100000.0,0.00043,120]
[377078851,1754250645104,-2000.0,0.00043,120]
[377078853,1754250645114,-500.0,0.00043073,10]
[377078855,1754250645124,-151.0,0.00043074,2]
[377078857,1754250645133,-151.0,0.00043074,2]
[377078859,1754250645143,-151.0,0.00043074,2]
[377078861,1754250645153,-151.0,0.00043074,2]
[377078863,1754250645162,-151.0,0.00043074,2]
[377078865,1754250645172,-151.0,0.00043074,2]
[377078867,1754250645181,-151.0,0.00043074,2]
[377078869,1754250645191,-151.0,0.00043074,2]
[377078871,1754250645201,-151.0,0.00043074,2]
[377078873,1754250645210,-151.0,0.00043074,2]
[377078875,1754250645219,-151.0,0.00043074,2]
[377078877,1754250645229,-151.0,0.00043074,2]
[377078879,1754250645239,-151.0,0.00043074,2]
[377078881,1754250645249,-151.0,0.00043074,2]
[377078883,1754250645259,-35882.3576713,0.0004308,3]
[377079005,1754250646428,-788.47,0.0004299,30]
[377079008,1754250646438,-596.48208102,0.0004308,3]
[377079575,1754250748543,152.0,0.00024,120]
[377079576,1754250749951,152.0,0.000255,120]
[377079577,1754250751342,152.0,0.000271,120]
[377079578,1754250752726,152.0,0.000286,120]
[377079579,1754250754140,152.0,0.000301,120]
[377079580,1754250823747,150.11,0.00026198,7]
[377079581,1754250823784,150.11,0.00026498,7]
[377079582,1754250826125,150.11,0.00026298,7]
[377079583,1754250826392,150.11,0.00026398,7]
[377079584,1754250838824,159.975173,0.00013699,2]
[377079598,1754251287823,208.1491157,0.00026144,2]
[377079600,1754251360530,304.5064582,0.00027397,120]
[377079602,1754251377457,153.0,0.00024,120]
[377079603,1754251378975,153.0,0.000256,120]
[377079604,1754251380418,153.0,0.000273,120]
[377079605,1754251381848,153.0,0.000289,120]
[377079607,1754251619113,-150.11,0.00026598,7]
[377079608,1754251619136,-33.52474032,0.00026698,7]
[377079628,1754251832502,-116.58525968,0.00026698,7]
[377079629,1754251832511,-150.11,0.00026798,7]
[377079630,1754251832521,-150.11,0.00026898,7]
[377079631,1754251832530,-150.11,0.00026998,7]
[377079632,1754251832540,-150.11,0.00027098,7]
[377079633,1754251832549,-150.11,0.00027198,7]
[377079634,1754251832558,-150.11,0.00027298,7]
[377079635,1754251832567,-150.11,0.00027398,15]
[377079636,1754251832577,-170.0,0.00027495,2]
[377079637,1754251832585,-300.0,0.00027495,2]
[377079638,1754251832595,-480.0,0.00027495,2]
[377079647,1754251832719,-1911.95879026,0.00027496,2]
[377079648,1754251832735,-4135.15771372,0.00027496,2]
[377079649,1754251832747,-468.57173119,0.00027496,2]
[377079650,1754251832759,-484.46519495,0.00027496,2]
[377079651,1754251832770,-843.88,0.00027496,2]
[377079955,1754251838321,-24429.45161816,0.00027496,2]
[377079956,1754251838332,-150.11,0.00027498,15]
[377079957,1754251838342,-150.11,0.00027598,15]
[377079958,1754251838353,-150.20577981,0.00027698,15]
[377079959,1754251838363,-183.66317847,0.00028807,22]
[377079960,1754251838373,-153.0,0.000305,120]
[377079961,1754251838383,-181.930651,0.00032096,2]
[377079962,1754251838392,-153.0,0.000322,120]
[377079964,1754251838402,-153.0,0.000338,120]
[377079966,1754251838411,-153.0,0.000354,120]
[377079969,1754251838420,-310.61,0.000358,2]
[377079972,1754251838429,-200.0,0.00036458,15]
[377079974,1754251838439,-200.0,0.00036458,15]
[377079976,1754251838448,-200.0,0.00036458,15]
[377079978,1754251838458,-502.24375699,0.00036864,5]
[377079980,1754251838467,-500.0,0.00036942,5]
[377079982,1754251838477,-500.0,0.00036942,5]
[377079984,1754251838486,-153.0,0.00037,120]
[377079986,1754251838496,-500.0,0.00037123,5]
[377079988,1754251838505,-500.0,0.00037123,5]
[377079990,1754251838515,-500.0,0.00037123,5]
[377079992,1754251838524,-1000.0,0.0003749,5]
[377079994,1754251838534,-905.42879302,0.0003749,5]
[377079996,1754251838543,-500.0,0.00037671,5]
[377079998,1754251838553,-500.0,0.00037793,15]
[377079999,1754251838562,-513.52713082,0.00037793,15]
[377080000,1754251838572,-486.49632528,0.00037793,15]
[377080002,1754251838583,-500.0,0.00037793,15]
[377080003,1754251838593,-500.0,0.00037793,2]
[377080004,1754251838602,-500.0,0.00037793,15]
[377080005,1754251838612,-500.0,0.00037793,2]
[377080006,1754251838621,-500.0,0.00037793,15]
[377080007,1754251838630,-500.0,0.00037793,2]
[377080008,1754251838640,-500.0,0.00037793,15]
[377080009,1754251838650,-500.0,0.00037793,15]
[377080010,1754251838659,-500.0,0.00037793,15]
[377080011,1754251838668,-500.0,0.00037793,15]
[377080012,1754251838677,-500.0,0.00037793,15]
[377080013,1754251838687,-500.0,0.00037793,15]
[377080014,1754251838696,-500.0,0.00037793,15]
[377080015,1754251838706,-500.0,0.00037793,15]
[377080016,1754251838716,-500.0,0.00037793,2]
[377080017,1754251838726,-500.0,0.00037793,15]
[377080018,1754251838735,-500.0,0.00037793,15]
[377080019,1754251838745,-500.0,0.00037793,2]
[377080020,1754251838754,-500.0,0.00037793,15]
[377080021,1754251838764,-500.0,0.00037793,15]
[377080022,1754251838773,-500.0,0.00037793,2]
[377080023,1754251838783,-500.0,0.00037793,15]
[377080024,1754251838794,-500.0,0.00037793,2]
[377080025,1754251838805,-500.0,0.00037793,15]
[377080026,1754251838815,-500.0,0.00037793,2]
[377080027,1754251838826,-500.0,0.00037793,15]
[377080028,1754251838836,-500.0,0.00037793,15]
[377080029,1754251838847,-500.0,0.00037793,15]
[377080030,1754251838857,-500.0,0.00037793,15]
[377080031,1754251838868,-500.0,0.00037793,2]
[377080032,1754251838878,-500.0,0.00037793,15]
[377080033,1754251838888,-500.0,0.00037793,2]
[377080034,1754251838899,-500.0,0.00037793,15]
[377080035,1754251838909,-500.0,0.00037793,15]
[377080036,1754251838919,-500.0,0.00037793,2]
[377080037,1754251838929,-500.0,0.00037793,15]
[377080038,1754251838940,-500.0,0.00037793,15]
[377080039,1754251838950,-500.0,0.00037793,15]
[377080040,1754251838960,-500.0,0.00037793,15]
[377080041,1754251838970,-500.0,0.00037793,15]
[377080042,1754251838980,-500.0,0.00037793,15]
[377080043,1754251838990,-500.0,0.00037793,15]
[377080044,1754251839000,-500.0,0.00037793,15]
[377080045,1754251839010,-500.0,0.00037793,15]
[377080046,1754251839020,-500.0,0.00037793,15]
[377080047,1754251839029,-500.0,0.00037793,15]
[377080048,1754251839039,-500.0,0.00037793,15]
[377080049,1754251839048,-500.0,0.00037793,15]
[377080050,1754251839058,-500.0,0.00037793,15]
[377080051,1754251839068,-500.0,0.00037793,15]
[377080052,1754251839078,-500.0,0.00037793,15]
[377080053,1754251839088,-500.0,0.00037793,15]
[377080054,1754251839097,-500.0,0.00037793,15]
[377080055,1754251839106,-500.0,0.00037793,15]
[377080056,1754251839116,-500.0,0.00037793,15]
[377080057,1754251839219,-500.0,0.00037793,15]
[377080058,1754251839228,-500.0,0.00037793,15]
[377080059,1754251839237,-500.0,0.00037793,15]
[377080060,1754251839247,-316.90429495,0.00037793,15]
[377080061,1754251839256,-500.0,0.00037793,15]
[377080062,1754251839265,-500.0,0.00037793,15]
[377080063,1754251839275,-500.0,0.00037793,15]
[377080064,1754251839284,-624.25841313,0.00037793,2]
[377080065,1754251839293,-500.0,0.00037793,15]
[377080066,1754251839302,-500.0,0.00037793,15]
[377080067,1754251839311,-500.0,0.00037793,15]
[377080068,1754251839321,-500.0,0.00037793,15]
[377080069,1754251839330,-500.0,0.00037793,15]
[377080070,1754251839340,-500.0,0.00037793,15]
[377080071,1754251839350,-500.0,0.00037793,15]
[377080072,1754251839359,-500.0,0.00037793,15]
[377080073,1754251839368,-500.0,0.00037793,15]
[377080074,1754251839377,-500.0,0.00037793,15]
[377080075,1754251839386,-500.0,0.00037793,15]
[377080076,1754251839395,-500.0,0.00037793,15]
[377080077,1754251839405,-500.0,0.00037793,15]
[377080078,1754251839414,-500.0,0.00037793,15]
[377080079,1754251839425,-500.0,0.00037799,15]
[377080080,1754251839435,-482.01,0.000378,7]
[377080081,1754251839444,-395.59999331,0.00038038,5]
[377080082,1754251839454,-159.975173,0.00038356,2]
[377080083,1754251839464,-153.0,0.000387,120]
[377080084,1754251839474,-833.11,0.00039113,10]
[377080085,1754251839483,-2147.0,0.00039123,2]
[377080086,1754251839493,-970.0,0.00039123,2]
[377080087,1754251839502,-215.12253551,0.00039289,3]
[377080088,1754251839512,-13639.8656634,0.00039289,3]
[377080089,1754251839522,-11214.83,0.00039299,120]
[377080090,1754251839531,-200.0,0.00039907,30]
[377080091,1754251839541,-200.0,0.00039907,30]
[377080092,1754251839550,-200.0,0.00039907,30]
[377080093,1754251839560,-240.0,0.00039907,30]
[377080094,1754251839569,-2000.0,0.0004,120]
[377080095,1754251839579,-11214.83,0.00040121,120]
[377080096,1754251839589,-153.0,0.000403,120]
[377080097,1754251839599,-557.83277482,0.0004059,2]
[377080098,1754251839609,-500.0,0.00040673,5]
[377080099,1754251839618,-500.0,0.00040673,2]
[377080100,1754251839627,-657.06,0.0004068,3]
[377080101,1754251839637,-27279.7313267,0.0004069,3]
[377080102,1754251839647,-83595.46893484,0.000407,2]
[377080103,1754251839656,-1865.65,0.000407,7]
[377080104,1754251839665,-151.0,0.00040798,31]
[377080105,1754251839675,-151.0,0.00040798,31]
[377080106,1754251839684,-151.0,0.00040798,31]
[377080107,1754251839694,-151.0,0.00040798,31]
[377080108,1754251839704,-11214.83,0.00040943,120]
[377080109,1754251839713,-2000.0,0.00041,120]
[377080110,1754251839723,-151.0,0.00041072,31]
[377080111,1754251839732,-151.0,0.00041072,31]
[377080112,1754251839742,-198.0,0.00041072,31]
[377080113,1754251839752,-151.0,0.00041072,31]
[377080114,1754251839761,-13639.8656634,0.000412,3]
[377080115,1754251839771,-358.22541969,0.0004122,31]
[377080116,1754251839782,-1000.0,0.00041221,2]
[377080117,1754251839792,-150.0,0.00041273,10]
[377080118,1754251839801,-482.01,0.000413,14]
[377080119,1754251839811,-151.0,0.00041346,31]
[377080120,1754251839820,-151.0,0.00041346,31]
[377080121,1754251839829,-153.53438336,0.00041346,31]
[377080122,1754251839839,-151.0,0.0004162,31]
[377080123,1754251839848,-151.0,0.0004162,31]
[377080124,1754251839858,-11214.83,0.00041765,120]
[377080125,1754251839867,-1541.93947362,0.00041768,2]
[377080126,1754251839877,-250.0,0.00041821,10]
[377080127,1754251839887,-216.36913112,0.00041828,10]
[377080128,1754251839897,-500.0,0.00041828,10]
[377080129,1754251839907,-500.0,0.00041828,10]
[377080130,1754251839917,-198.0,0.00041894,31]
[377080131,1754251839926,-198.0,0.00041894,31]
[377080132,1754251839935,-153.0,0.000419,120]
[377080133,1754251839945,-2000.0,0.00042,120]
[377080135,1754251839955,-1314.12,0.0004205,3]
[377080136,1754251839965,-500.0,0.00042117,10]
[377080137,1754251839974,-500.0,0.00042117,10]
[377080138,1754251839984,-500.0,0.00042117,10]
[377080139,1754251839994,-502.37384086,0.00042117,10]
[377080140,1754251840003,-500.0,0.00042117,10]
[377080141,1754251840014,-367.85255021,0.00042117,10]
[377080142,1754251840023,-500.0,0.00042117,10]
[377080143,1754251840033,-500.0,0.00042117,10]
[377080145,1754251840042,-630.62758701,0.00042117,10]
[377080146,1754251840051,-505.73271087,0.00042117,10]
[377080147,1754251840061,-152.04654358,0.00042117,10]
[377080148,1754251840076,-500.0,0.00042117,10]
[377080149,1754251840086,-500.0,0.00042117,10]
[377080150,1754251840096,-500.0,0.00042117,10]
[377080151,1754251840106,-500.45459786,0.00042117,10]
[377080153,1754251840116,-500.0,0.00042117,10]
[377080155,1754251840126,-13639.8656634,0.00042306,3]
[377080157,1754251840136,-312.16666667,0.00042316,10]
[377080159,1754251840146,-350.0,0.00042368,10]
[377080161,1754251840156,-500.0,0.00042373,10]
[377080163,1754251840165,-500.0,0.00042373,10]
[377080165,1754251840175,-1000.0,0.00042376,10]
[377080167,1754251840185,-5000.388578,0.000425,100]
[377080169,1754251840195,-151.0,0.00042587,120]
[377080171,1754251840207,-169.708372,0.00042587,120]
[377080173,1754251840216,-295.521855,0.00042587,120]
[377080175,1754251840226,-151.0,0.00042587,118]
[377080177,1754251840236,-11214.83,0.00042587,120]
[377080179,1754251840246,-1000.0,0.00042665,10]
[377080181,1754251840255,-1115.76643537,0.00042665,10]
[377080183,1754251840265,-1000.0,0.00042665,10]
[377080185,1754251840282,-502.50247681,0.00042665,10]
[377080187,1754251840298,-1000.0,0.00042665,10]
[377080189,1754251840307,-1000.0,0.00042665,10]
[377080191,1754251840317,-1000.0,0.00042665,10]
[377080193,1754251840328,-1000.0,0.00042665,10]
[377080196,1754251840338,-557.83277478,0.00042893,2]
[377080198,1754251840348,-450.0,0.00042916,10]
[377080200,1754251840358,-1000.0,0.00042921,10]
[377080202,1754251840367,-1000.0,0.00042921,10]
[377080204,1754251840377,-501.38135654,0.00042924,10]
[377080206,1754251840386,-500.0,0.00042988,120]
[377080208,1754251840395,-13639.8656634,0.0004299,3]
[377080210,1754251840405,-2000.0,0.00043,120]
[377080212,1754251840414,-5000.0,0.00043,120]
[377080214,1754251840424,-1865.65,0.00043,7]
[377080215,1754251840433,-500.0,0.00043073,10]
[377080217,1754251840443,-500.0,0.00043073,10]
[377080220,1754251840452,-500.0,0.00043073,7]
[377080221,1754251840462,-622.73460147,0.00043073,10]
[377080223,1754251840471,-638.16332236,0.00043074,2]
[377080225,1754251840481,-250.0,0.00043079,3]
[377080227,1754251840490,-300.0,0.00043079,3]
[377080229,1754251840500,-151.0,0.00043079,3]
[377080231,1754251840509,-151.0,0.00043079,3]
[377080233,1754251840519,-151.0,0.00043079,3]
[377080235,1754251840528,-151.0,0.00043079,3]
[377080237,1754251840538,-151.0,0.00043079,3]
[377080240,1754251840547,-151.0,0.00043079,3]
[377080242,1754251840557,-151.0,0.00043079,3]
[377080244,1754251840566,-151.0,0.00043079,3]
[377080245,1754251840575,-151.0,0.00043079,3]
[377080248,1754251840585,-151.0,0.00043079,3]
[377080250,1754251840594,-151.0,0.00043079,3]
[377080253,1754251840603,-151.0,0.00043079,3]
[377080255,1754251840613,-151.0,0.00043079,3]
[377080258,1754251840623,-2259.06,0.000432,14]
[377080259,1754251840633,-1141.7037864,0.00043213,10]
[377080261,1754251840642,-1500.0,0.00043213,10]
[377080263,1754251840651,-1000.0,0.00043213,10]
[377080266,1754251840663,-1500.0,0.00043213,10]
[377080267,1754251840672,-515.95931533,0.00043213,10]
[377080270,1754251840682,-194.31634394,0.00043213,10]
[377080272,1754251840692,-11214.83,0.00043409,120]
[377080274,1754251840702,-550.0,0.00043464,10]
[377080276,1754251840712,-902.76054144,0.00043468,2]
[377080277,1754251840721,-1500.0,0.00043468,10]
[377080280,1754251840732,-1500.0,0.00043468,10]
[377080281,1754251840741,-153.0,0.000436,120]
[377080283,1754251840751,-482.01,0.000436,14]
[377080285,1754251840765,-1000.0,0.00043621,10]
[377080287,1754251840775,-766.29760607,0.00043621,10]
[377080296,1754251840854,-745.79341206,0.00043621,7]
[377080298,1754251840873,-500.0,0.00043625,10]
[377080300,1754251840883,-200.0,0.00043683,30]
[377080302,1754251840892,-200.0,0.00043683,30]
[377080304,1754251840902,-200.0,0.00043683,30]
[377080306,1754251840911,-200.0,0.00043683,30]
[377080308,1754251840921,-375.0,0.00043683,30]
[377080310,1754251840931,-500.0,0.00043761,10]
[377080312,1754251840940,-1269.34916379,0.00043761,10]
[377080314,1754251840950,-200.0,0.00043919,120]
[377080316,1754251840960,-2000.0,0.00044,120]
[377080318,1754251840969,-600.54396759,0.00044,120]
[377080320,1754251840982,-300.0,0.00044,120]
[377080322,1754251840991,-150.0,0.00044,120]
[377080324,1754251841001,-446.47399686,0.00044012,10]
[377080326,1754251841011,-733.21080716,0.00044016,10]
[377080328,1754251841020,-2000.0,0.00044016,10]
[377080330,1754251841030,-1000.0,0.00044173,10]
[377080332,1754251841040,-13639.8656634,0.00044185,3]
[377080334,1754251841050,-214.814703,0.00044195,120]
[377080336,1754251841060,-151.0,0.00044195,120]
[377080338,1754251841069,-151.0,0.00044195,120]
[377080340,1754251841079,-151.0,0.00044195,120]
[377080342,1754251841088,-151.0,0.00044231,120]
[377080344,1754251841098,-151.0,0.00044231,118]
[377080346,1754251841108,-11214.83,0.00044231,120]
[377080348,1754251841118,-503.10768806,0.00044343,10]
[377080350,1754251841127,-200.0,0.00044408,120]
[377080352,1754251841137,-931.84,0.000445,7]
[377080354,1754251841146,-500.0,0.00044564,10]
[377080356,1754251841156,-1500.0,0.00044721,10]
[377080358,1754251841165,-151.0,0.00044733,120]
[377080360,1754251841176,-272.134171,0.00044733,120]
[377080362,1754251841185,-151.0,0.00044733,120]
[377080364,1754251841194,-200.0,0.00044793,120]
[377080366,1754251841204,-3000.0,0.00045,120]
[377080368,1754251841213,-860.17791295,0.00045,20]
[377080370,1754251841222,-900.0,0.00045,120]
[377080372,1754251841232,-150.0,0.00045,120]
[377080374,1754251841241,-1865.65,0.00045,7]
[377080376,1754251841250,-11214.83,0.00045053,120]
[377080378,1754251841260,-557.83277478,0.00045195,2]
[377080380,1754251841270,-153.0,0.000452,120]
[377080382,1754251841279,-500.0,0.00045205,15]
[377080384,1754251841289,-255.35,0.00045205,30]
[377080386,1754251841298,-227.42117534,0.00045269,10]
[377080388,1754251841307,-482.01,0.000453,14]
[377080390,1754251841317,-151.0,0.00045361,120]
[377080392,1754251841327,-151.0,0.00045361,120]
[377080394,1754251841341,-13639.8656634,0.0004539,3]
[377080396,1754251841350,-2259.06,0.000454,14]
[377080398,1754251841360,-151.0,0.000454,120]
[377080400,1754251841369,-151.0,0.000454,120]
[377080402,1754251841378,-151.0,0.000454,120]
[377080404,1754251841387,-182.03,0.00045446,14]
[377080406,1754251841397,-11214.83,0.00045875,120]
[377080408,1754251841406,-3000.0,0.00046,120]
[377080411,1754251841416,-300.0,0.00046,120]
[377080413,1754251841425,-150.0,0.00046,120]
[377080415,1754251841435,-265.71801667,0.00046044,120]
[377080416,1754251841444,-265.71801667,0.00046049,120]
[377080419,1754251841453,-265.71801667,0.00046094,120]
[377080421,1754251841463,-265.71801667,0.00046131,120]
[377080423,1754251841472,-200.0,0.00046182,120]
[377080425,1754251841482,-250.0,0.00046574,31]
[377080426,1754251841491,-300.0,0.00046574,31]
[377080429,1754251841501,-250.0,0.00046574,32]
[377080431,1754251841511,-300.0,0.00046574,32]
[377080433,1754251841521,-151.0,0.00046574,31]
[377080435,1754251841530,-151.0,0.00046574,32]
[377080437,1754251841540,-151.0,0.00046696,120]
[377080439,1754251841549,-151.0,0.00046696,120]
[377080441,1754251841559,-151.0,0.00046696,120]
[377080443,1754251841569,-11214.83,0.00046696,120]
[377080445,1754251841580,-153.0,0.000468,120]
[377080447,1754251841591,-3000.0,0.00047,120]
[377080449,1754251841600,-200.0,0.00047275,120]
[377080451,1754251841609,-1865.65,0.000473,7]
[377080453,1754251841619,-502.05085636,0.0004732,10]
[377080455,1754251841629,-500.0,0.0004732,10]
[377080457,1754251841638,-557.83277478,0.00047498,2]
[377080459,1754251841649,-13639.8656634,0.00047508,4]
[377080461,1754251841660,-151.0,0.00047518,120]
[377080463,1754251841670,-151.0,0.00047518,118]
[377080465,1754251841679,-11214.83,0.00047518,120]
[377080467,1754251841689,-200.0,0.00047524,120]
[377080469,1754251841698,-2259.06,0.000476,14]
[377080471,1754251841708,-150.0,0.00047663,3]
[377080473,1754251841718,-200.0,0.00047815,60]
[377080475,1754251841727,-200.0,0.00047815,60]
[377080477,1754251841737,-200.0,0.00047815,60]
[377080479,1754251841747,-200.0,0.00047815,60]
[377080481,1754251841756,-200.0,0.00047815,60]
[377080483,1754251841766,-200.0,0.00047815,60]
[377080485,1754251841776,-200.0,0.00047815,60]
[377080486,1754251841787,-246.0,0.00047815,60]
[377080487,1754251841797,-3000.0,0.00048,120]
[377080488,1754251841806,-1249.99999902,0.00048,120]
[377080489,1754251841817,-300.0,0.00048,120]
[377080490,1754251841826,-151.0,0.00048011,120]
[377080491,1754251841836,-187.722809,0.00048011,120]
[377080492,1754251841846,-151.0,0.00048011,120]
[377080493,1754251841855,-151.0,0.00048011,120]
[377080494,1754251841865,-150.0,0.00048073,7]
[377080495,1754251841875,-200.0,0.00048102,120]
[377080496,1754251841884,-11214.83,0.0004834,120]
[377080497,1754251841893,-500.0,0.00048373,10]
[377080498,1754251841903,-172.18488,0.0004838,120]
[377080499,1754251841913,-151.0,0.0004838,120]
[377080500,1754251841923,-13639.8656634,0.0004839,4]
[377080501,1754251841932,-34969.7,0.000484,14]
[377080502,1754251841942,-151.0,0.000484,120]
[377080503,1754251841953,-151.0,0.000484,120]
[377080504,1754251841963,-199.715402,0.000484,120]
[377080505,1754251841973,-153.0,0.000485,120]
[377080506,1754251841982,-182.03,0.00048523,14]
[377080507,1754251841992,-200.0,0.00048527,120]
[377080508,1754251842001,-15906.94,0.00048533,14]
[377080509,1754251842011,-151.0,0.00048558,120]
[377080510,1754251842020,-151.0,0.00048558,118]
[377080511,1754251842029,-300.0,0.00048621,7]
[377080512,1754251842039,-151.0,0.00048843,120]
[377080513,1754251842049,-260.746367,0.00048843,120]
[377080514,1754251842059,-500.0,0.00048873,10]
[377080515,1754251842068,-512.66983789,0.00048921,10]
[377080516,1754251842077,-13639.8656634,0.0004899,4]
[377080517,1754251842087,-160.0,0.00048997,3]
[377080518,1754251842097,-160.0,0.00048997,5]
[377080519,1754251842107,-1000.0,0.00048999,120]
[377080520,1754251842117,-250.0,0.00048999,60]
[377080521,1754251842126,-300.0,0.00048999,60]
[377080522,1754251842136,-151.0,0.00048999,60]
[377080524,1754251842145,-308.89307817,0.00049,15]
[377080525,1754251842154,-5000.0,0.00049,120]
[377080526,1754251842164,-1000.0,0.00049,120]
[377080528,1754251842173,-11214.83,0.00049162,120]
[377080530,1754251842183,-450.0,0.00049168,7]
[377080532,1754251842192,-8349.51,0.00049168,14]
[377080534,1754251842201,-1000.0,0.00049421,10]
[377080536,1754251842211,-1000.0,0.000495,2]
[377080538,1754251842220,-200.0,0.0004968,120]
[377080540,1754251842229,-600.0,0.00049716,7]
[377080542,1754251842239,-557.83277478,0.000498,2]
[377080544,1754251842249,-12665.39110749,0.0004989,4]
[377080568,1754251842467,-974.47455591,0.0004989,4]
[377080570,1754251842476,-18694.64233828,0.000499,14]
[377080572,1754251842492,-16275.05766172,0.000499,14]
[377080573,1754251842502,-151.0,0.000499,120]
[377080574,1754251842511,-151.0,0.000499,120]
[377080575,1754251842521,-774.88030331,0.00049968,10]
[377080576,1754251842530,-151.0,0.00049984,120]
[377080577,1754251842539,-151.0,0.00049984,118]
[377080578,1754251842549,-11214.83,0.00049984,120]
[377080579,1754251842558,-1000.0,0.00049999,120]
[377080580,1754251842568,-527.76161409,0.0005,10]
[377080581,1754251842577,-199.0,0.0005,7]
[377080582,1754251842587,-177.69067793,0.0005,120]
[377080584,1754251842596,-217.57251356,0.0005,20]
[377080585,1754251842606,-192.43385373,0.0005,120]
[377080586,1754251842616,-539.42602765,0.0005,120]
[377080587,1754251842625,-209.39738109,0.0005,30]
[377080588,1754251842634,-203.95612532,0.0005,120]
[377080589,1754251842643,-205.0,0.0005,120]
[377080590,1754251842653,-527.12062288,0.0005,10]
[377080591,1754251842662,-216.32054205,0.0005,10]
[377080592,1754251842672,-1253.77677486,0.0005,120]
[377080593,1754251842681,-300.0,0.0005,120]